fUST/lending_fUST_20250713
["ID","MTS","AMOUNT","RATE_DAILY","PERIOD"]
[371539796,1752341468320,-1377.53,0.00019726,2]
[371539797,1752341468330,-528.16,0.00019726,2]
[371539798,1752341468339,-460.0,0.00019726,2]
[371539799,1752341468349,-460.0,0.00019726,2]
[371539800,1752341468358,-574.66,0.00019726,2]
[371539801,1752341468368,-460.0,0.00019726,2]
[371539802,1752341468378,-460.0,0.00019726,2]
[371539803,1752341468389,-326.62802765,0.00019726,2]
[371539804,1752341468398,-572.58,0.00019726,2]
[371539805,1752341468407,-520.2,0.00019726,2]
[371539806,1752341468417,-151.0,0.00019726,2]
[371539807,1752341468427,-724.22,0.00019726,2]
[371539808,1752341468437,-460.0,0.00019726,2]
[371539809,1752341468446,-477.98,0.00019726,2]
[371539810,1752341468456,-460.0,0.00019726,2]
[371539811,1752341468466,-1280.94,0.00019726,2]
[371539812,1752341468475,-460.0,0.00019726,2]
[371539813,1752341468485,-460.0,0.00019726,2]
[371539814,1752341468495,-1975.66,0.00019726,2]
[371539815,1752341468504,-764.69,0.00019726,2]
[371539816,1752341468513,-822.69,0.00019726,2]
[371539817,1752341468525,-2904.99,0.00019726,2]
[371539818,1752341468536,-460.0,0.00019726,2]
[371539819,1752341468546,-717.3,0.00019726,2]
[371539820,1752341468556,-641.87,0.00019726,2]
[371539821,1752341468565,-472.14,0.00019726,2]
[371539822,1752341468575,-461.89,0.00019726,2]
[371539823,1752341468585,-555.91,0.00019726,2]
[371539824,1752341468595,-460.0,0.00019726,2]
[371539825,1752341468605,-460.0,0.00019726,2]
[371539826,1752341468616,-2667.26,0.00019726,2]
[371539827,1752341468625,-460.0,0.00019726,2]
[371539828,1752341468636,-460.0,0.00019726,2]
[371539829,1752341468645,-460.0,0.00019726,2]
[371539830,1752341468655,-491.78,0.00019726,2]
[371539831,1752341468666,-460.0,0.00019726,2]
[371539832,1752341468676,-645.69,0.00019726,2]
[371539833,1752341468687,-460.0,0.00019726,2]
[371539834,1752341468696,-460.0,0.00019726,2]
[371539835,1752341468706,-505.28,0.00019726,2]
[371539836,1752341468716,-151.0,0.00019726,2]
[371539837,1752341468726,-460.0,0.00019726,2]
[371539838,1752341468735,-460.0,0.00019726,2]
[371539839,1752341468745,-460.0,0.00019726,2]
[371539840,1752341468754,-800.93,0.00019726,2]
[371539841,1752341468764,-460.0,0.00019726,2]
[371539842,1752341468773,-489.97,0.00019726,2]
[371539843,1752341468783,-460.0,0.00019726,2]
[371539844,1752341468792,-460.0,0.00019726,2]
[371539845,1752341468801,-2783.19,0.00019726,2]
[371539846,1752341468811,-460.0,0.00019726,2]
[371539847,1752341468820,-466.62,0.00019726,2]
[371539848,1752341468829,-460.0,0.00019726,2]
[371539849,1752341468839,-1495.63,0.00019726,2]
[371539850,1752341468848,-460.0,0.00019726,2]
[371539851,1752341468857,-488.38,0.00019726,2]
[371539852,1752341468867,-460.0,0.00019726,2]
[371539853,1752341468876,-4194.76,0.00019726,2]
[371539854,1752341468887,-460.02,0.00019726,2]
[371539855,1752341468896,-460.0,0.00019726,2]
[371539856,1752341468906,-1061.05,0.00019726,2]
[371539857,1752341468915,-1961.7256578,0.00019831,2]
[371539858,1752341468925,-270.83,0.00019878,2]
[371539859,1752341468935,-500.0,0.00019973,2]
[371539860,1752341468944,-500.0,0.00019973,2]
[371539861,1752341468954,-1788.49133284,0.0002,2]
[371539862,1752341468964,-460.0,0.0002,2]
[371539863,1752341468973,-460.0,0.0002,2]
[371539864,1752341468982,-90258.0,0.0002,2]
[371539865,1752341468991,-179.8044503,0.0002,2]
[371539866,1752341469000,-460.0,0.0002,2]
[371539867,1752341469010,-151.93788471,0.0002,2]
[371539868,1752341469019,-520.55,0.0002,2]
[371539869,1752341469028,-460.0,0.0002,2]
[371539870,1752341469037,-667.2,0.0002,2]
[371539871,1752341469046,-696.16,0.0002,2]
[371539872,1752341469056,-460.0,0.0002,2]
[371539873,1752341469066,-706.94,0.0002,2]
[371539874,1752341469075,-460.0,0.0002,2]
[371539875,1752341469085,-460.0,0.0002,2]
[371539876,1752341469094,-365.33,0.0002,2]
[371539877,1752341469105,-460.0,0.0002,2]
[371539878,1752341469114,-692.2,0.0002,2]
[371539879,1752341469123,-778.38,0.0002,2]
[371539880,1752341469135,-460.0,0.0002,2]
[371539881,1752341469144,-661.3,0.0002,2]
[371539882,1752341469154,-460.0,0.0002,2]
[371539883,1752341469163,-460.0,0.0002,2]
[371539884,1752341469172,-5899.36,0.0002,2]
[371539885,1752341469182,-460.0,0.0002,2]
[371539886,1752341469191,-237.77885004,0.0002,2]
[371539887,1752341469201,-1031.76,0.0002,2]
[371539888,1752341469211,-460.0,0.0002,2]
[371539889,1752341469221,-460.0,0.0002,2]
[371539890,1752341469230,-460.0,0.0002,2]
[371539891,1752341469240,-460.0,0.0002,2]
[371539892,1752341469249,-855.52,0.0002,2]
[371539893,1752341469259,-151.0,0.0002,2]
[371539894,1752341469268,-1595.36,0.0002,2]
[371539895,1752341469277,-1455.86,0.0002,2]
[371539896,1752341469287,-460.0,0.0002,2]
[371539897,1752341469298,-460.0,0.0002,2]
[371539898,1752341469307,-460.0,0.0002,2]
[371539899,1752341469317,-3548.65,0.0002,2]
[371539900,1752341469326,-1600.37,0.0002,2]
[371539901,1752341469336,-460.0,0.0002,2]
[371539902,1752341469346,-1889.11,0.0002,2]
[371539903,1752341469355,-460.0,0.0002,2]
[371539904,1752341469365,-576.07,0.0002,2]
[371539905,1752341469374,-1377.53,0.0002,2]
[371539906,1752341469385,-528.16,0.0002,2]
[371539907,1752341469395,-460.0,0.0002,2]
[371539908,1752341469404,-460.0,0.0002,2]
[371539909,1752341469413,-574.66,0.0002,2]
[371539910,1752341469423,-460.0,0.0002,2]
[371539911,1752341469432,-460.0,0.0002,2]
[371539912,1752341469443,-572.58,0.0002,2]
[371539913,1752341469452,-520.2,0.0002,2]
[371539914,1752341469461,-724.22,0.0002,2]
[371539915,1752341469471,-460.0,0.0002,2]
[371539916,1752341469480,-477.98,0.0002,2]
[371539917,1752341469490,-460.0,0.0002,2]
[371539918,1752341469499,-1280.94,0.0002,2]
[371539919,1752341469509,-1975.66,0.0002,2]
[371539920,1752341469519,-764.69,0.0002,2]
[371539921,1752341469532,-822.69,0.0002,2]
[371539922,1752341469541,-11218.70515284,0.0002,2]
[371539923,1752341469551,-14327.64330798,0.0002,2]
[371539924,1752341469561,-2904.99,0.0002,2]
[371539925,1752341469571,-3190.41222963,0.0002,2]
[371539926,1752341469580,-17512.41079684,0.0002,20]
[371539927,1752341469590,-362.2537436,0.0002,2]
[371539928,1752341469600,-40000.0,0.0002,2]
[371539929,1752341469609,-839.50569351,0.0002,2]
[371539930,1752341469618,-3481.70383816,0.0002,2]
[371539931,1752341469627,-2183.81486075,0.0002,2]
[371539932,1752341469639,-600.66698098,0.0002,2]
[371539933,1752341469649,-717.3,0.0002,2]
[371539934,1752341469658,-641.87,0.0002,2]
[371539935,1752341469668,-472.14,0.0002,2]
[371539936,1752341469677,-461.89,0.0002,2]
[371539937,1752341469687,-555.91,0.0002,2]
[371539938,1752341469698,-460.0,0.0002,2]
[371539939,1752341469712,-460.0,0.0002,2]
[371539940,1752341469843,-2667.26,0.0002,2]
[371539941,1752341469864,-460.0,0.0002,2]
[371539942,1752341469874,-555.8,0.0002,2]
[371539943,1752341469884,-491.78,0.0002,2]
[371539944,1752341469893,-305.02908202,0.0002,2]
[371539945,1752341469903,-645.69,0.0002,2]
[371539946,1752341469913,-460.0,0.0002,2]
[371539947,1752341469923,-505.28,0.0002,2]
[371539948,1752341469933,-460.0,0.0002,2]
[371539949,1752341469943,-460.0,0.0002,2]
[371539950,1752341469952,-460.0,0.0002,2]
[371539951,1752341469962,-800.93,0.0002,2]
[371539952,1752341469972,-460.0,0.0002,2]
[371539953,1752341469982,-489.97,0.0002,2]
[371539954,1752341469992,-460.0,0.0002,2]
[371539955,1752341470002,-460.0,0.0002,2]
[371539956,1752341470011,-2783.19,0.0002,2]
[371539957,1752341470021,-460.0,0.0002,2]
[371539958,1752341470030,-466.62,0.0002,2]
[371539959,1752341470040,-1495.63,0.0002,2]
[371539960,1752341470050,-460.0,0.0002,2]
[371539961,1752341470059,-488.38,0.0002,2]
[371539962,1752341470069,-460.0,0.0002,2]
[371539963,1752341470079,-4194.76,0.0002,2]
[371539964,1752341470088,-460.02,0.0002,2]
[371539965,1752341470098,-1061.05,0.0002,2]
[371539966,1752341470107,-1961.7256578,0.00020072,2]
[371539967,1752341470116,-3000.0,0.00020087,2]
[371539968,1752341470126,-500.0,0.00020087,2]
[371539969,1752341470137,-1500.0,0.00020268,2]
[371539970,1752341470146,-1500.0,0.00020268,2]
[371539971,1752341470155,-1500.0,0.00020268,2]
[371539972,1752341470164,-556.7,0.00020273,2]
[371539973,1752341470174,-460.0,0.00020273,2]
[371539974,1752341470183,-460.0,0.00020273,2]
[371539975,1752341470192,-520.55,0.00020273,2]
[371539976,1752341470203,-460.0,0.00020273,2]
[371539977,1752341470213,-667.2,0.00020273,2]
[371539978,1752341470224,-696.16,0.00020273,2]
[371539979,1752341470233,-460.0,0.00020273,2]
[371539980,1752341470243,-706.94,0.00020273,2]
[371539981,1752341470253,-460.0,0.00020273,2]
[371539982,1752341470262,-460.0,0.00020273,2]
[371539983,1752341470271,-460.0,0.00020273,2]
[371539984,1752341470281,-692.2,0.00020273,2]
[371539985,1752341470291,-778.38,0.00020273,2]
[371539986,1752341470300,-460.0,0.00020273,2]
[371539987,1752341470310,-661.3,0.00020273,2]
[371539988,1752341470319,-460.0,0.00020273,2]
[371539989,1752341470328,-460.0,0.00020273,2]
[371539990,1752341470338,-5899.36,0.00020273,2]
[371539991,1752341470347,-460.0,0.00020273,2]
[371539992,1752341470357,-1031.76,0.00020273,2]
[371539993,1752341470366,-460.0,0.00020273,2]
[371539994,1752341470375,-460.0,0.00020273,2]
[371539995,1752341470385,-460.0,0.00020273,2]
[371539996,1752341470394,-460.0,0.00020273,2]
[371539997,1752341470403,-855.52,0.00020273,2]
[371539998,1752341470413,-1595.36,0.00020273,2]
[371539999,1752341470422,-1455.86,0.00020273,2]
[371540000,1752341470432,-460.0,0.00020273,2]
[371540001,1752341470441,-460.0,0.00020273,2]
[371540002,1752341470451,-460.0,0.00020273,2]
[371540003,1752341470460,-1600.37,0.00020273,2]
[371540004,1752341470470,-3548.65,0.00020273,2]
[371540005,1752341470480,-460.0,0.00020273,2]
[371540006,1752341470489,-460.0,0.00020273,2]
[371540007,1752341470499,-1889.11,0.00020273,2]
[371540008,1752341470509,-576.07,0.00020273,2]
[371540009,1752341470520,-1377.53,0.00020273,2]
[371540010,1752341470533,-528.16,0.00020273,2]
[371540011,1752341470543,-460.0,0.00020273,2]
[371540012,1752341470554,-460.0,0.00020273,2]
[371540013,1752341470564,-574.66,0.00020273,2]
[371540014,1752341470574,-460.0,0.00020273,2]
[371540015,1752341470584,-460.0,0.00020273,2]
[371540016,1752341470594,-572.58,0.00020273,2]
[371540017,1752341470604,-520.2,0.00020273,2]
[371540018,1752341470613,-724.22,0.00020273,2]
[371540019,1752341470623,-460.0,0.00020273,2]
[371540020,1752341470634,-477.98,0.00020273,2]
[371540021,1752341470643,-460.0,0.00020273,2]
[371540022,1752341470652,-1280.94,0.00020273,2]
[371540023,1752341470662,-1975.66,0.00020273,2]
[371540024,1752341470671,-764.69,0.00020273,2]
[371540025,1752341470681,-822.69,0.00020273,2]
[371540026,1752341470690,-2904.99,0.00020273,2]
[371540027,1752341470700,-717.3,0.00020273,2]
[371540028,1752341470710,-641.87,0.00020273,2]
[371540029,1752341470719,-472.14,0.00020273,2]
[371540030,1752341470728,-461.89,0.00020273,2]
[371540031,1752341470738,-555.91,0.00020273,2]
[371540032,1752341470747,-460.0,0.00020273,2]
[371540033,1752341470757,-460.0,0.00020273,2]
[371540034,1752341470767,-2667.26,0.00020273,2]
[371540035,1752341470777,-460.0,0.00020273,2]
[371540036,1752341470786,-491.78,0.00020273,2]
[371540037,1752341470796,-645.69,0.00020273,2]
[371540038,1752341470806,-575.57290686,0.00020273,2]
[371540039,1752341470815,-505.28,0.00020273,2]
[371540040,1752341470824,-460.0,0.00020273,2]
[371540041,1752341470834,-460.0,0.00020273,2]
[371540042,1752341470843,-460.0,0.00020273,2]
[371540043,1752341470852,-800.93,0.00020273,2]
[371540044,1752341470862,-460.0,0.00020273,2]
[371540045,1752341470872,-489.97,0.00020273,2]
[371540046,1752341470882,-460.0,0.00020273,2]
[371540047,1752341470891,-2783.19,0.00020273,2]
[371540048,1752341470900,-460.0,0.00020273,2]
[371540049,1752341470910,-466.62,0.00020273,2]
[371540050,1752341470919,-1495.63,0.00020273,2]
[371540051,1752341470928,-460.0,0.00020273,2]
[371540052,1752341470937,-488.38,0.00020273,2]
[371540053,1752341470947,-460.0,0.00020273,2]
[371540054,1752341470957,-4194.76,0.00020273,2]
[371540055,1752341470966,-460.02,0.00020273,2]
[371540056,1752341470975,-1061.05,0.00020273,2]
[371540057,1752341470984,-178.092,0.00020283,2]
[371540058,1752341470994,-741.754,0.00020283,2]
[371540059,1752341471003,-1961.7256578,0.00020314,3]
[371540060,1752341471013,-3745.95,0.000205,2]
[371540061,1752341471022,-156.527578,0.000205,2]
[371540062,1752341471031,-151.0,0.000205,2]
[371540063,1752341471040,-1000.0,0.00020521,2]
[371540064,1752341471051,-460.0,0.00020547,2]
[371540065,1752341471061,-460.0,0.00020547,2]
[371540066,1752341471070,-520.55,0.00020547,2]
[371540067,1752341471080,-460.0,0.00020547,2]
[371540068,1752341471089,-667.2,0.00020547,2]
[371540069,1752341471098,-696.16,0.00020547,2]
[371540070,1752341471107,-460.0,0.00020547,2]
[371540071,1752341471118,-706.94,0.00020547,2]
[371540072,1752341471128,-460.0,0.00020547,2]
[371540073,1752341471138,-460.0,0.00020547,2]
[371540074,1752341471147,-460.0,0.00020547,2]
[371540075,1752341471157,-692.2,0.00020547,2]
[371540076,1752341471166,-778.38,0.00020547,2]
[371540077,1752341471176,-460.0,0.00020547,2]
[371540078,1752341471186,-661.3,0.00020547,2]
[371540079,1752341471196,-460.0,0.00020547,2]
[371540080,1752341471206,-460.0,0.00020547,2]
[371540081,1752341471216,-5899.36,0.00020547,2]
[371540082,1752341471226,-1031.76,0.00020547,2]
[371540083,1752341471235,-460.0,0.00020547,2]
[371540084,1752341471245,-460.0,0.00020547,2]
[371540085,1752341471254,-460.0,0.00020547,2]
[371540086,1752341471263,-460.0,0.00020547,2]
[371540087,1752341471272,-855.52,0.00020547,2]
[371540088,1752341471281,-1595.36,0.00020547,2]
[371540089,1752341471291,-1455.86,0.00020547,2]
[371540090,1752341471300,-460.0,0.00020547,2]
[371540091,1752341471310,-460.0,0.00020547,2]
[371540092,1752341471320,-460.0,0.00020547,2]
[371540093,1752341471329,-1600.37,0.00020547,2]
[371540094,1752341471339,-3548.65,0.00020547,2]
[371540095,1752341471348,-309.43847576,0.00020547,2]
[371540096,1752341471357,-1889.11,0.00020547,2]
[371540097,1752341471367,-576.07,0.00020547,2]
[371540098,1752341471377,-1377.53,0.00020547,2]
[371540099,1752341471386,-528.16,0.00020547,2]
[371540100,1752341471396,-460.0,0.00020547,2]
[371540101,1752341471405,-460.0,0.00020547,2]
[371540102,1752341471415,-574.66,0.00020547,2]
[371540103,1752341471424,-460.0,0.00020547,2]
[371540104,1752341471433,-460.0,0.00020547,2]
[371540105,1752341471443,-572.58,0.00020547,2]
[371540106,1752341471452,-520.2,0.00020547,2]
[371540107,1752341471462,-724.22,0.00020547,2]
[371540108,1752341471471,-460.0,0.00020547,2]
[371540109,1752341471480,-477.98,0.00020547,2]
[371540110,1752341471490,-460.0,0.00020547,2]
[371540111,1752341471502,-1280.94,0.00020547,2]
[371540112,1752341471512,-151.0,0.00020547,2]
[371540113,1752341471522,-1975.66,0.00020547,2]
[371540114,1752341471535,-822.69,0.00020547,2]
[371540115,1752341471545,-151.0,0.00020547,2]
[371540116,1752341471555,-764.69,0.00020547,2]
[371540117,1752341471565,-2904.99,0.00020547,2]
[371540118,1752341471576,-151.0,0.00020547,2]
[371540119,1752341471586,-151.0,0.00020547,2]
[371540120,1752341471595,-717.3,0.00020547,2]
[371540121,1752341471605,-641.87,0.00020547,2]
[371540122,1752341471615,-472.14,0.00020547,2]
[371540123,1752341471624,-461.89,0.00020547,2]
[371540124,1752341471635,-460.0,0.00020547,2]
[371540125,1752341471645,-555.91,0.00020547,2]
[371540126,1752341471655,-2667.26,0.00020547,2]
[371540127,1752341471664,-151.0,0.00020547,2]
[371540128,1752341471673,-491.78,0.00020547,2]
[371540129,1752341471683,-645.69,0.00020547,2]
[371540130,1752341471692,-151.0,0.00020547,2]
[371540131,1752341471702,-505.28,0.00020547,2]
[371540132,1752341471711,-460.0,0.00020547,2]
[371540133,1752341471721,-460.0,0.00020547,2]
[371540134,1752341471731,-800.93,0.00020547,2]
[371540135,1752341471740,-460.0,0.00020547,2]
[371540136,1752341471750,-489.97,0.00020547,2]
[371540137,1752341471760,-2783.19,0.00020547,2]
[371540138,1752341471769,-460.0,0.00020547,2]
[371540139,1752341471779,-460.0,0.00020547,2]
[371540140,1752341471788,-466.62,0.00020547,2]
[371540141,1752341471798,-1495.63,0.00020547,2]
[371540142,1752341471807,-581.95713535,0.00020547,2]
[371540143,1752341471816,-488.38,0.00020547,2]
[371540144,1752341471826,-460.0,0.00020547,2]
[371540145,1752341471836,-4194.76,0.00020547,2]
[371540146,1752341471846,-151.0,0.00020547,2]
[371540147,1752341471855,-460.02,0.00020547,2]
[371540148,1752341471865,-1061.05,0.00020547,2]
[371540149,1752341471875,-1961.7256578,0.00020555,3]
[371540150,1752341471886,-492.41,0.000206,2]
[371540151,1752341471896,-29944.87,0.000206,2]
[371540152,1752341471905,-151.0,0.000206,2]
[371540153,1752341471915,-151.0,0.000206,2]
[371540154,1752341471924,-151.0,0.000206,2]
[371540155,1752341471934,-151.0,0.000206,2]
[371540156,1752341471943,-151.0,0.000206,2]
[371540157,1752341471954,-1126.11862193,0.00020635,2]
[371540158,1752341471964,-156.1156594,0.00020658,2]
[371540159,1752341471974,-165.0,0.00020719,2]
[371540160,1752341471984,-151.0,0.00020719,2]
[371540161,1752341471994,-151.0,0.00020719,2]
[371540162,1752341472003,-151.0,0.00020719,2]
[371540163,1752341472012,-151.0,0.00020719,2]
[371540164,1752341472022,-207.4,0.00020719,2]
[371540165,1752341472031,-151.0,0.00020719,2]
[371540166,1752341472041,-151.0,0.00020719,2]
[371540167,1752341472184,-151.0,0.00020719,2]
[371540168,1752341472194,-151.0,0.00020719,2]
[371540169,1752341472204,-151.0,0.00020719,2]
[371540170,1752341472214,-151.0,0.00020719,2]
[371540171,1752341472224,-151.0,0.00020719,2]
[371540172,1752341472234,-151.0,0.00020719,2]
[371540173,1752341472243,-151.0,0.00020719,2]
[371540174,1752341472253,-151.0,0.00020719,2]
[371540175,1752341472263,-151.0,0.00020719,2]
[371540176,1752341472273,-151.0,0.00020719,2]
[371540177,1752341472282,-151.0,0.00020719,2]
[371540178,1752341472291,-1961.7256578,0.00020797,4]
[371540179,1752341472301,-500.0,0.00020814,2]
[371540180,1752341472310,-580.93774563,0.00020816,2]
[371540181,1752341472320,-2000.0,0.00020816,2]
[371540182,1752341472329,-2000.0,0.00020816,2]
[371540183,1752341472338,-151.0,0.00020821,2]
[371540184,1752341472347,-151.0,0.00020821,2]
[371540185,1752341472356,-151.0,0.00020821,2]
[371540186,1752341472366,-460.0,0.00020821,2]
[371540187,1752341472375,-520.55,0.00020821,2]
[371540188,1752341472385,-500.08560201,0.00020821,2]
[371540189,1752341472395,-667.2,0.00020821,2]
[371540190,1752341472404,-696.16,0.00020821,2]
[371540191,1752341472413,-460.0,0.00020821,2]
[371540192,1752341472422,-706.94,0.00020821,2]
[371540193,1752341472432,-460.0,0.00020821,2]
[371540194,1752341472441,-460.0,0.00020821,2]
[371540195,1752341472450,-460.0,0.00020821,2]
[371540196,1752341472460,-692.2,0.00020821,2]
[371540197,1752341472471,-778.38,0.00020821,2]
[371540198,1752341472481,-460.0,0.00020821,2]
[371540199,1752341472490,-661.3,0.00020821,2]
[371540200,1752341472499,-604.4,0.00020821,2]
[371540201,1752341472509,-559.24,0.00020821,2]
[371540202,1752341472518,-5899.36,0.00020821,2]
[371540203,1752341472532,-1031.76,0.00020821,2]
[371540204,1752341472541,-460.0,0.00020821,2]
[371540205,1752341472550,-543.93316443,0.00020821,2]
[371540206,1752341472560,-191.27609319,0.00020821,2]
[371540207,1752341472569,-460.0,0.00020821,2]
[371540208,1752341472579,-855.52,0.00020821,2]
[371540209,1752341472589,-1595.36,0.00020821,2]
[371540210,1752341472599,-1455.86,0.00020821,2]
[371540211,1752341472610,-460.0,0.00020821,2]
[371540212,1752341472621,-460.0,0.00020821,2]
[371540213,1752341472631,-460.0,0.00020821,2]
[371540214,1752341472642,-1600.37,0.00020821,2]
[371540215,1752341472652,-3548.65,0.00020821,2]
[371540216,1752341472661,-1889.11,0.00020821,2]
[371540217,1752341472671,-576.07,0.00020821,2]
[371540218,1752341472680,-1377.53,0.00020821,2]
[371540219,1752341472691,-528.16,0.00020821,2]
[371540220,1752341472701,-460.0,0.00020821,2]
[371540221,1752341472710,-574.66,0.00020821,2]
[371540222,1752341472720,-460.0,0.00020821,2]
[371540223,1752341472729,-572.58,0.00020821,2]
[371540224,1752341472739,-151.0,0.00020821,2]
[371540225,1752341472748,-520.2,0.00020821,2]
[371540226,1752341472758,-724.22,0.00020821,2]
[371540227,1752341472767,-460.0,0.00020821,2]
[371540228,1752341472777,-477.98,0.00020821,2]
[371540229,1752341472787,-460.0,0.00020821,2]
[371540230,1752341472796,-1280.94,0.00020821,2]
[371540231,1752341472806,-1975.66,0.00020821,2]
[371540232,1752341472816,-822.69,0.00020821,2]
[371540233,1752341472826,-764.69,0.00020821,2]
[371540234,1752341472835,-2904.99,0.00020821,2]
[371540235,1752341472846,-641.87,0.00020821,2]
[371540236,1752341472855,-717.3,0.00020821,2]
[371540237,1752341472865,-472.14,0.00020821,2]
[371540238,1752341472875,-461.89,0.00020821,2]
[371540239,1752341472885,-580.92818793,0.00020821,2]
[371540240,1752341472894,-555.91,0.00020821,2]
[371540241,1752341472904,-2667.26,0.00020821,2]
[371540242,1752341472914,-491.78,0.00020821,2]
[371540243,1752341472923,-645.69,0.00020821,2]
[371540244,1752341472933,-505.28,0.00020821,2]
[371540245,1752341472942,-151.0,0.00020821,2]
[371540246,1752341472952,-460.0,0.00020821,2]
[371540247,1752341472961,-460.0,0.00020821,2]
[371540248,1752341472970,-800.93,0.00020821,2]
[371540249,1752341472980,-460.0,0.00020821,2]
[371540250,1752341472991,-489.97,0.00020821,2]
[371540251,1752341473000,-2783.19,0.00020821,2]
[371540252,1752341473010,-460.0,0.00020821,2]
[371540253,1752341473019,-460.0,0.00020821,2]
[371540254,1752341473028,-466.62,0.00020821,2]
[371540255,1752341473038,-1495.63,0.00020821,2]
[371540256,1752341473048,-488.38,0.00020821,2]
[371540257,1752341473059,-460.0,0.00020821,2]
[371540258,1752341473069,-4194.76,0.00020821,2]
[371540259,1752341473079,-460.02,0.00020821,2]
[371540260,1752341473088,-1061.05,0.00020821,2]
[371540261,1752341473098,-541.67,0.00020825,2]
[371540262,1752341473107,-504.12455157,0.00020924,2]
[371540263,1752341473117,-5000.0,0.00020947,2]
[371540264,1752341473126,-1961.7256578,0.00021038,4]
[371540265,1752341473136,-1500.0,0.00021068,2]
[371540266,1752341473146,-460.0,0.00021095,2]
[371540267,1752341473155,-520.55,0.00021095,2]
[371540268,1752341473164,-667.2,0.00021095,2]
[371540269,1752341473174,-696.16,0.00021095,2]
[371540270,1752341473183,-706.94,0.00021095,2]
[371540271,1752341473193,-460.0,0.00021095,2]
[371540272,1752341473203,-460.0,0.00021095,2]
[371540273,1752341473212,-460.0,0.00021095,2]
[371540274,1752341473222,-692.2,0.00021095,2]
[371540275,1752341473231,-778.38,0.00021095,2]
[371540276,1752341473240,-460.0,0.00021095,2]
[371540277,1752341473250,-661.3,0.00021095,2]
[371540278,1752341473259,-5899.36,0.00021095,2]
[371540279,1752341473268,-1031.76,0.00021095,2]
[371540280,1752341473278,-460.0,0.00021095,2]
[371540281,1752341473287,-460.0,0.00021095,2]
[371540282,1752341473297,-855.52,0.00021095,2]
[371540283,1752341473307,-1595.36,0.00021095,2]
[371540284,1752341473316,-1455.86,0.00021095,2]
[371540285,1752341473325,-216.43374271,0.00021095,2]
[371540286,1752341473334,-460.0,0.00021095,2]
[371540287,1752341473343,-1600.37,0.00021095,2]
[371540288,1752341473352,-3548.65,0.00021095,2]
[371540289,1752341473361,-1889.11,0.00021095,2]
[371540290,1752341473377,-576.07,0.00021095,2]
[371540291,1752341473393,-1377.53,0.00021095,2]
[371540292,1752341473404,-528.16,0.00021095,2]
[371540293,1752341473414,-350.45015773,0.00021095,2]
[371540294,1752341473424,-574.66,0.00021095,2]
[371540295,1752341473434,-465.4,0.00021095,2]